fUST/lending_fUST_20250217
["ID","MTS","AMOUNT","RATE_DAILY","PERIOD"]
[353334170,1739777443627,-530.11,0.00014184,2]
[353334171,1739777443639,-530.11,0.00014266,2]
[353334172,1739777443649,-318.66250715,0.00014285,2]
[353334173,1739777443658,-530.11,0.00014348,2]
[353334174,1739777443667,-162.81220565,0.00014369,2]
[353334175,1739777443677,-530.11,0.0001443,2]
[353334176,1739777443686,-530.24,0.00014513,2]
[353334177,1739777443695,-505.35418174,0.000148,2]
[353334178,1739777443704,-166.748793,0.00014845,3]
[353334179,1739777443714,-500.0,0.00014899,2]
[353334180,1739777443723,-229.52459156,0.00014899,2]
[353334181,1739777443733,-500.0,0.00014899,2]
[353334182,1739777443743,-500.0,0.00014899,2]
[353334183,1739777443753,-500.0,0.00014899,2]
[353334184,1739777443763,-255.23769833,0.00014899,2]
[353334185,1739777443773,-157.37339337,0.00014899,2]
[353334186,1739777443783,-299.48551962,0.00014899,2]
[353334187,1739777443793,-500.0,0.00014899,2]
[353334188,1739777443803,-500.0,0.00014899,2]
[353334189,1739777443812,-500.0,0.00014899,2]
[353334190,1739777443822,-150.0,0.000149,2]
[353334191,1739777443831,-108185.4539,0.000149,2]
[353334192,1739777443841,-162.81220565,0.00015252,2]
[353334193,1739777443850,-515.82,0.0001528,7]
[353334194,1739777443859,-1687.0,0.000161,2]
[353334195,1739777443869,-414.5882185,0.00016117,2]
[353334196,1739777443882,-162.81220565,0.00016135,2]
[353334197,1739777443891,-782.54,0.00016164,2]
[353334198,1739777443900,-542.0,0.0001618,2]
[353334199,1739777443909,-3000.0,0.00016287,2]
[353334200,1739777443918,-175.98806387,0.00016289,2]
[353334201,1739777443927,-175.98806387,0.00016289,2]
[353334202,1739777443936,-175.98806387,0.00016289,2]
[353334203,1739777443947,-175.98806387,0.00016289,2]
[353334204,1739777443960,-175.98,0.00016289,2]
[353334205,1739777443970,-157.93800604,0.00016289,2]
[353334206,1739777443979,-157.93800604,0.00016289,2]
[353334207,1739777443988,-157.93800604,0.00016289,2]
[353334208,1739777443998,-157.93800604,0.00016289,2]
[353334209,1739777444007,-157.93800604,0.00016289,2]
[353334210,1739777444017,-157.93800604,0.00016289,2]
[353334211,1739777444026,-157.93800604,0.00016289,2]
[353334212,1739777444036,-157.93800604,0.00016289,2]
[353334213,1739777444045,-157.93800604,0.00016289,2]
[353334214,1739777444055,-157.93800604,0.00016289,2]
[353334215,1739777444065,-157.93800604,0.00016289,2]
[353334216,1739777444074,-157.93800604,0.00016289,2]
[353334217,1739777444084,-157.93,0.00016289,2]
[353334218,1739777444093,-7772.65300341,0.00016289,2]
[353334219,1739777444103,-500.0,0.00016373,2]
[353334220,1739777444112,-500.0,0.00016373,2]
[353334221,1739777444121,-151.0,0.00016387,2]
[353334222,1739777444130,-151.0,0.00016387,2]
[353334223,1739777444140,-151.0,0.00016387,2]
[353334224,1739777444150,-151.0,0.00016387,2]
[353334225,1739777444159,-151.0,0.00016387,2]
[353334226,1739777444169,-151.0,0.00016387,2]
[353334227,1739777444178,-151.0,0.00016387,2]
[353334228,1739777444191,-151.0,0.00016387,2]
[353334229,1739777444201,-180.510921,0.00016387,2]
[353334230,1739777444211,-151.0,0.00016388,2]
[353334231,1739777444220,-151.0,0.00016388,2]
[353334232,1739777444230,-151.0,0.00016388,2]
[353334233,1739777444239,-151.0,0.00016388,2]
[353334234,1739777444249,-214.00188,0.00016388,2]
[353334235,1739777444259,-15710.72106481,0.00016388,5]
[353334236,1739777444270,-904.00909605,0.00016388,5]
[353334237,1739777444281,-58095.61024645,0.00016389,2]
[353334238,1739777444290,-21963.40810095,0.00016389,15]
[353334239,1739777444300,-90062.51539087,0.00016389,2]
[353334240,1739777444309,-300.0,0.00016389,2]
[353334241,1739777444318,-251.71278855,0.00016389,2]
[353334242,1739777444328,-16647.55672959,0.00016389,2]
[353334243,1739777444337,-1254.87142656,0.00016389,2]
[353334244,1739777444347,-50823.3450331,0.00016389,14]
[353334245,1739777444356,-197530.12315195,0.00016389,10]
[353334261,1739777445839,-2609.98229919,0.00016389,10]
[353334262,1739777492396,400.0,0.00010685,2]
[353334265,1739777779680,6115.59484621,0.00016387,120]
[353334269,1739778127885,1000.0,0.00019,120]
[353334271,1739778351144,-234.64133232,0.00012154,2]
[353334272,1739778351166,-234.64133232,0.00012277,2]
[353334273,1739778351187,-166.0,0.00012329,2]
[353334274,1739778351214,-300.0,0.00012401,2]
[353334275,1739778351236,-428.26515419,0.00012401,2]
[353334276,1739778425101,-565.35866768,0.00012277,2]
[353334277,1739778425124,-172.64133232,0.000124,2]
[353334278,1739778428091,-127.35866768,0.000124,2]
[353334279,1739778428114,-42.46943683,0.00012401,2]
[353334280,1739778435127,-29.26540898,0.00012401,2]
[353334281,1739778435151,-500.0,0.00012401,2]
[353334282,1739778435173,-347.31657146,0.00012401,2]
[353334283,1739778435196,-500.0,0.00012401,2]
[353334284,1739778435221,-500.0,0.00012401,2]
[353334285,1739778435245,-216.04343766,0.00012401,2]
[353334286,1739778435271,-500.0,0.00012401,2]
[353334287,1739778435293,-500.0,0.00012401,2]
[353334288,1739778435317,-500.0,0.00012401,2]
[353334289,1739778435339,-500.0,0.00012401,2]
[353334290,1739778435360,-8796.93189733,0.00012402,2]
[353334291,1739778452094,-500.0,0.00012401,2]
[353334292,1739778452243,-4325.93683161,0.00012402,2]
[353334294,1739778548089,-500.0,0.00012401,2]
[353334295,1739778548112,-500.0,0.00012401,2]
[353334296,1739778548136,-300.0,0.00012401,2]
[353334297,1739778548158,-11777.13127106,0.00012402,2]
[353334298,1739778548183,-500.0,0.00012483,2]
[353334299,1739778548207,-500.0,0.00012483,2]
[353334300,1739778548232,-500.0,0.00012483,2]
[353334301,1739778548257,-500.0,0.00012483,2]
[353334302,1739778548283,-500.0,0.00012483,2]
[353334303,1739778548308,-36.20509491,0.00012483,2]
[353334325,1739778632040,-500.0,0.00012401,2]
[353334327,1739778632050,-292.11,0.00012401,2]
[353334329,1739778632060,-504.71,0.00012401,2]
[353334331,1739778632069,-463.79490509,0.00012483,2]
[353334333,1739778632079,-500.0,0.00012483,2]
[353334335,1739778632088,-500.0,0.00012566,2]
[353334337,1739778632097,-500.0,0.00012566,2]
[353334339,1739778632107,-500.0,0.00012566,2]
[353334340,1739778632116,-202.706,0.00012621,2]
[353334342,1739778632126,-500.0,0.00012631,2]
[353334344,1739778632135,-500.0,0.00012632,2]
[353334347,1739778632145,-500.0,0.00012632,2]
[353334348,1739778632154,-500.0,0.00012632,2]
[353334350,1739778632163,-500.0,0.00012632,2]
[353334352,1739778632172,-500.0,0.00012632,2]
[353334354,1739778632182,-500.0,0.00012632,2]
[353334356,1739778632191,-500.0,0.00012632,2]
[353334358,1739778632200,-500.0,0.00012632,2]
[353334360,1739778632209,-500.0,0.00012632,2]
[353334362,1739778632218,-543.28,0.00012632,2]
[353334364,1739778632228,-500.0,0.00012632,2]
[353334365,1739778632237,-500.0,0.00012632,2]
[353334366,1739778632247,-475.39981083,0.00012632,2]
[353334368,1739778632259,-24.60018917,0.00012632,2]
[353334370,1739778632268,-500.0,0.00012632,2]
[353334372,1739778632277,-500.0,0.00012632,2]
[353334374,1739778632289,-512.89,0.00012632,2]
[353334376,1739778632299,-500.0,0.00012632,2]
[353334378,1739778632308,-500.0,0.00012632,2]
[353334380,1739778632318,-580.82,0.00012632,2]
[353334381,1739778632328,-500.0,0.00012632,2]
[353334383,1739778632338,-500.0,0.00012632,2]
[353334385,1739778632347,-500.0,0.00012632,2]
[353334387,1739778632357,-500.0,0.00012632,2]
[353334388,1739778632368,-500.0,0.00012632,2]
[353334389,1739778632377,-500.0,0.00012632,2]
[353334390,1739778632387,-500.0,0.00012632,2]
[353334393,1739778632396,-505.03,0.00012632,2]
[353334394,1739778632406,-500.0,0.00012632,2]
[353334397,1739778632415,-500.0,0.00012632,2]
[353334400,1739778632435,-500.0,0.00012632,2]
[353334402,1739778632445,-500.0,0.00012632,2]
[353334403,1739778632455,-500.0,0.00012632,2]
[353334404,1739778632466,-4005.66453238,0.00012633,2]
[353334405,1739778632476,-585.26,0.00012648,2]
[353334406,1739778632486,-500.0,0.00012648,2]
[353334407,1739778632495,-500.0,0.00012648,2]
[353334408,1739778632505,-500.5596429,0.0001269,2]
[353334409,1739778632515,-500.0,0.00012711,2]
[353334410,1739778632524,-353.51763792,0.00012711,2]
[353334411,1739778632534,-500.0,0.00012714,2]
[353334412,1739778632544,-613.69,0.00012714,2]
[353334413,1739778632554,-500.0,0.00012714,2]
[353334414,1739778632564,-500.0,0.00012714,2]
[353334415,1739778632573,-638.29,0.00012714,2]
[353334416,1739778632584,-647.96,0.00012714,2]
[353334417,1739778632594,-500.0,0.00012714,2]
[353334418,1739778632604,-500.0,0.00012714,2]
[353334419,1739778632614,-618.9,0.00012714,2]
[353334420,1739778632624,-500.0,0.00012714,2]
[353334421,1739778632634,-500.0,0.00012725,2]
[353334422,1739778632645,-500.0,0.0001273,2]
[353334423,1739778632655,-500.0,0.0001273,2]
[353334424,1739778632666,-357.62,0.00012796,2]
[353334425,1739778632676,-500.0,0.00012796,2]
[353334426,1739778632686,-500.0,0.00012796,2]
[353334427,1739778632696,-500.0,0.00012796,2]
[353334428,1739778632706,-199.13,0.00012796,2]
[353334429,1739778632715,-180.19,0.00012796,2]
[353334430,1739778632725,-500.0,0.00012812,2]
[353334431,1739778632735,-245.62,0.00012812,2]
[353334432,1739778632745,-608.33,0.00012879,2]
[353334433,1739778632755,-373.58,0.00012879,2]
[353334434,1739778632765,-161.6,0.00012879,2]
[353334435,1739778632775,-500.0,0.00012894,2]
[353334436,1739778632784,-500.0,0.00012976,2]
[353334437,1739778632794,-500.0,0.00013059,2]
[353334438,1739778632804,-607.81,0.00013141,2]
[353334439,1739778632814,-153.0,0.00013699,2]
[353334440,1739778632823,-153.0,0.00013699,2]
[353334441,1739778632833,-153.0,0.00013699,2]
[353334442,1739778632843,-1233.3137222,0.00014204,2]
[353334443,1739778632852,-150.0,0.000149,2]
[353334444,1739778632862,-330.6712655,0.00016225,2]
[353334445,1739778632872,-6995.38770315,0.00016288,2]
[353334446,1739778632882,-175.98848452,0.00016288,2]
[353334447,1739778632892,-175.98848452,0.00016288,2]
[353334448,1739778632902,-175.98848452,0.00016288,2]
[353334449,1739778632911,-175.98848452,0.00016288,2]
[353334450,1739778632920,-175.98,0.00016288,2]
[353334451,1739778632929,-157.93838354,0.00016288,2]
[353334452,1739778632939,-157.93838354,0.00016288,2]
[353334453,1739778632948,-157.93838354,0.00016288,2]
[353334454,1739778632957,-157.93838354,0.00016288,2]
[353334455,1739778632966,-157.93838354,0.00016288,2]
[353334456,1739778632975,-157.93838354,0.00016288,2]
[353334457,1739778632984,-157.93838354,0.00016288,2]
[353334458,1739778632994,-157.93838354,0.00016288,2]
[353334459,1739778633003,-157.93838354,0.00016288,2]
[353334460,1739778633013,-157.93838354,0.00016288,2]
[353334461,1739778633022,-157.93838354,0.00016288,2]
[353334462,1739778633031,-157.93838354,0.00016288,2]
[353334463,1739778633041,-157.93,0.00016288,2]
[353334464,1739778633052,-3000.0,0.00016289,2]
[353334465,1739778633063,-749.94,0.00016386,2]
[353334466,1739778633073,-151.0,0.00016387,2]
[353334467,1739778633083,-151.0,0.00016387,2]
[353334468,1739778633093,-151.0,0.00016387,2]
[353334469,1739778633103,-151.0,0.00016387,2]
[353334470,1739778633113,-510.66721409,0.00016387,2]
[353334471,1739778633122,-500.0,0.00016387,2]
[353334472,1739778633132,-500.0,0.00016387,2]
[353334473,1739778633141,-500.0,0.00016387,2]
[353334474,1739778633151,-500.0,0.00016387,2]
[353334475,1739778633161,-500.0,0.00016387,2]
[353334476,1739778633171,-368.02415548,0.00016387,2]
[353334477,1739778633180,-500.0,0.00016387,2]
[353334478,1739778633190,-500.0,0.00016387,2]
[353334479,1739778633201,-500.0,0.00016387,2]
[353334480,1739778633211,-151.0,0.00016388,2]
[353334481,1739778633224,-151.0,0.00016388,2]
[353334482,1739778633233,-452.00454802,0.00016388,5]
[353334483,1739778633242,-7855.36053241,0.00016388,5]
[353334484,1739778633252,-334123.16808292,0.00016388,10]
[353334503,1739778638121,-164.4,0.00016388,2]
[353334504,1739778638131,-226.00227401,0.00016388,5]
[353334505,1739778638140,-755315.5240425,0.00016388,10]
[353334524,1739778638441,-4931.15838821,0.00016388,10]
[353334550,1739778640149,-1406.22779386,0.00016288,2]
[353334551,1739778640160,-4552.11121057,0.00016388,10]
[353334552,1739778640221,-536.21520351,0.00016388,10]
[353334580,1739778643056,-164.4,0.00016388,2]
[353334581,1739778643066,-233.25645784,0.00016388,10]
[353334582,1739778644376,-151.0,0.00016388,2]
[353334585,1739778644386,-13408.18613312,0.00016388,10]
[353334589,1739778644397,-983.33,0.00016388,10]
[353334615,1739778646181,-5009.12612968,0.00016388,10]
[353334619,1739778696089,250.0,0.00011569,2]
[353334621,1739778729260,400.0,0.00010685,2]
[353334627,1739779547111,-300.0,0.00010779,2]
[353334628,1739779547134,-300.0,0.00010888,2]
[353334629,1739779547156,-300.0,0.00010998,2]
[353334630,1739779547179,-640.96296918,0.00010999,2]
[353334631,1739779632086,-692.36703082,0.0001078,2]
[353334632,1739779632109,-692.36703082,0.00010889,2]
[353334633,1739779632131,-300.0,0.00010998,2]
[353334634,1739779632168,-318.66250715,0.00010999,2]
[353334635,1739779632193,-192.36703082,0.00010999,2]
[353334636,1739779632216,-500.0,0.00010999,2]
[353334637,1739779632240,-500.0,0.00010999,2]
[353334638,1739779632265,-500.0,0.00010999,2]
[353334639,1739779632289,-500.0,0.00010999,2]
[353334640,1739779632313,-500.0,0.00010999,2]
[353334641,1739779632337,-500.0,0.00010999,2]
[353334642,1739779632361,-500.0,0.00010999,2]
[353334643,1739779632384,-279.83336195,0.00010999,2]
[353334644,1739779632411,-500.0,0.00010999,2]
[353334645,1739779632433,-500.0,0.00010999,2]
[353334646,1739779632456,-292.07940742,0.00010999,2]
[353334647,1739779636083,-207.92059258,0.00010999,2]
[353334648,1739779636107,-65.98171584,0.00010999,2]
[353334649,1739779645112,-1146.11489548,0.00010889,2]
[353334650,1739779645138,-434.01828416,0.00010999,2]
[353334651,1739779645164,-299.48551962,0.00010999,2]
[353334652,1739779645190,-255.23769833,0.00010999,2]
[353334653,1739779645216,-157.37339337,0.00010999,2]
[353334654,1739779645240,-11646.19709078,0.00011,3]
[353334655,1739779649137,-598.32731886,0.0001078,2]
[353334656,1739779746085,-364.89465554,0.00010672,2]
[353334657,1739779746107,-547.78757662,0.0001078,2]
[353334658,1739779746129,-300.0,0.00010998,2]
[353334659,1739779746150,-500.0,0.00010999,2]
[353334660,1739779746171,-500.0,0.00010999,2]
[353334661,1739779746192,-728.54,0.00010999,2]
[353334662,1739779746214,-500.0,0.00010999,2]
[353334663,1739779746236,-500.0,0.00010999,2]
[353334664,1739779746257,-549.28,0.00010999,2]
[353334665,1739779746279,-500.0,0.00010999,2]
[353334666,1739779746301,-798.6,0.00010999,2]
[353334667,1739779746322,-154297.61196784,0.00011,3]
[353334668,1739779746351,-81802.36277766,0.00011,3]
[353334669,1739779750111,-2329.13371586,0.00011,3]
[353334670,1739779754116,-7731.70249295,0.00011,3]
[353334671,1739779754136,-500.0,0.00011081,2]
[353334672,1739779754156,-500.0,0.00011081,2]
[353334673,1739779754177,-500.0,0.00011081,2]
[353334674,1739779754196,-500.0,0.00011081,2]
[353334675,1739779754216,-500.0,0.00011081,2]
[353334676,1739779754236,-500.0,0.00011081,2]
[353334677,1739779754256,-243.67796413,0.00011081,2]
[353334678,1739779754276,-616.42,0.00011081,2]
[353334679,1739779754298,-728.54,0.00011081,2]
[353334680,1739779754318,-176.22,0.00011081,2]
[353334681,1739779754339,-500.0,0.00011081,2]
[353334682,1739779754361,-798.6,0.00011081,2]
[353334683,1739779754386,-500.0,0.00011164,2]
[353334684,1739779754408,-500.0,0.00011164,2]
[353334685,1739779754430,-500.0,0.00011164,2]
[353334686,1739779754449,-381.68559945,0.00011164,2]
[353334687,1739779754470,-500.0,0.00011164,2]
[353334688,1739779754491,-500.0,0.00011164,2]
[353334689,1739779754512,-728.54,0.00011164,2]
[353334690,1739779754536,-583.73,0.00011164,2]
[353334691,1739779754558,-798.6,0.00011164,2]
[353334692,1739779754581,-500.0,0.00011246,2]
[353334693,1739779754603,-500.0,0.00011246,2]
[353334694,1739779754624,-500.0,0.00011246,2]
[353334695,1739779754648,-500.0,0.00011246,2]
[353334696,1739779754671,-728.54,0.00011246,2]
[353334697,1739779754695,-798.6,0.00011246,2]
[353334698,1739779754717,-500.0,0.00011328,2]
[353334699,1739779754740,-500.0,0.00011328,2]
[353334700,1739779754765,-500.0,0.00011328,2]
[353334701,1739779754788,-500.0,0.00011328,2]
[353334702,1739779754811,-728.54,0.00011328,2]
[353334703,1739779754835,-798.6,0.00011328,2]
[353334704,1739779754856,-500.0,0.0001141,2]
[353334705,1739779754876,-500.0,0.0001141,2]
[353334706,1739779754898,-500.0,0.0001141,2]
[353334707,1739779754919,-500.0,0.0001141,2]
[353334708,1739779754940,-728.54,0.0001141,2]
[353334709,1739779754961,-798.6,0.0001141,2]
[353334710,1739779754981,-500.0,0.00011492,2]
[353334711,1739779755002,-500.0,0.00011492,2]
[353334712,1739779755022,-316.23,0.00011492,2]
[353334713,1739779755043,-500.0,0.00011492,2]
[353334714,1739779755064,-728.54,0.00011492,2]
[353334715,1739779755085,-798.6,0.00011492,2]
[353334716,1739779755106,-500.0,0.00011575,2]
[353334717,1739779755126,-478.8,0.00011575,2]
[353334718,1739779755148,-500.0,0.00011575,2]
[353334719,1739779755169,-728.54,0.00011575,2]
[353334720,1739779755190,-798.6,0.00011575,2]
[353334721,1739779755211,-502.81126132,0.00011614,2]
[353334722,1739779755232,-500.60477532,0.00011614,2]
[353334723,1739779755254,-502.71292363,0.00011614,2]
[353334724,1739779755275,-503.1260455,0.00011614,2]
[353334725,1739779755296,-500.0,0.00011614,2]
[353334726,1739779755316,-502.41660396,0.00011614,2]
[353334727,1739779755338,-313.97481182,0.00011614,2]
[353334728,1739779755362,-500.0,0.00011614,2]
[353334729,1739779755383,-500.0,0.00011614,2]
[353334730,1739779755403,-500.0,0.00011614,2]
[353334731,1739779755424,-500.0,0.00011614,2]
[353334732,1739779755445,-500.0,0.00011614,2]
[353334733,1739779755466,-500.0,0.00011614,2]
[353334734,1739779755487,-178.68650354,0.00011614,2]
[353334735,1739779755508,-500.0,0.00011614,2]
[353334736,1739779755528,-268.47726591,0.00011614,2]
[353334737,1739779755549,-500.0,0.00011614,2]
[353334738,1739779755571,-500.0,0.00011614,2]
[353334739,1739779755591,-504.66135188,0.00011614,2]
[353334740,1739779755612,-500.0,0.00011614,2]
[353334741,1739779755632,-500.0,0.00011614,2]
[353334742,1739779755761,-500.0,0.00011614,2]
[353334743,1739779755785,-500.0,0.00011614,2]
[353334744,1739779755807,-500.0,0.00011614,2]
[353334745,1739779755829,-500.0,0.00011614,2]
[353334746,1739779755852,-501.68147153,0.00011614,2]
[353334747,1739779755872,-500.0,0.00011614,2]
[353334748,1739779755894,-500.0,0.00011614,2]
[353334749,1739779755914,-500.0,0.00011614,2]
[353334750,1739779755936,-500.0,0.00011614,2]
[353334751,1739779755958,-500.0,0.00011614,2]
[353334752,1739779755978,-605.42,0.00011614,2]
[353334753,1739779755998,-500.0,0.00011614,2]
[353334754,1739779756017,-500.0,0.00011614,2]
[353334755,1739779756037,-498.0,0.00011614,2]
[353334756,1739779756057,-500.0,0.00011614,2]
[353334757,1739779756077,-500.0,0.00011614,2]
[353334758,1739779756099,-500.0,0.00011614,2]
[353334759,1739779756121,-500.0,0.00011614,2]
[353334760,1739779756142,-500.0,0.00011614,2]
[353334761,1739779756163,-500.0,0.00011614,2]
[353334762,1739779756184,-500.0,0.00011614,2]
[353334763,1739779756206,-500.0,0.00011614,2]
[353334764,1739779756227,-633.42,0.00011614,2]
[353334765,1739779756250,-500.0,0.00011614,2]
[353334766,1739779756272,-1399.21,0.00011614,2]
[353334767,1739779756293,-500.0,0.00011614,2]
[353334768,1739779756314,-503.01103909,0.00011614,2]
[353334769,1739779756336,-500.0,0.00011614,2]
[353334770,1739779756359,-500.0,0.00011614,2]
[353334771,1739779756382,-500.0,0.00011614,2]
[353334772,1739779756404,-500.0,0.00011614,2]
[353334773,1739779756425,-500.0,0.00011614,2]
[353334774,1739779756446,-585.82,0.00011614,2]
[353334775,1739779756467,-500.0,0.00011614,2]
[353334776,1739779756488,-24900.0,0.00011615,2]
[353334777,1739779756510,-500.0,0.00011657,2]
[353334778,1739779756533,-500.0,0.00011657,2]
[353334779,1739779756555,-728.54,0.00011657,2]
[353334780,1739779756578,-798.6,0.00011657,2]
[353334781,1739779756598,-500.0,0.00011696,2]
[353334782,1739779756620,-503.50174926,0.00011696,2]
[353334783,1739779756642,-500.0,0.00011696,2]
[353334784,1739779756665,-445.29,0.00011696,2]
[353334785,1739779756692,-500.0,0.00011696,2]
[353334786,1739779756714,-500.0,0.00011696,2]
[353334787,1739779756736,-500.0,0.00011696,2]
[353334788,1739779756759,-443.17,0.00011696,2]
[353334789,1739779756783,-1399.21,0.00011696,2]
[353334790,1739779756805,-500.0,0.00011696,2]
[353334791,1739779756828,-500.0,0.00011696,2]
[353334792,1739779756849,-558.15105015,0.00011696,2]
[353334793,1739779756871,-500.0,0.00011739,2]
[353334794,1739779756893,-500.0,0.00011739,2]
[353334795,1739779756915,-728.54,0.00011739,2]
[353334796,1739779756937,-798.6,0.00011739,2]
[353334797,1739779756959,-500.0,0.00011778,2]
[353334798,1739779756982,-500.0,0.00011778,2]
[353334799,1739779757005,-500.0,0.00011778,2]
[353334800,1739779757025,-500.0,0.00011778,2]
[353334801,1739779757047,-1399.21,0.00011778,2]
[353334802,1739779757069,-500.0,0.00011778,2]
[353334803,1739779757091,-500.0,0.00011778,2]
[353334804,1739779757116,-500.0,0.00011821,2]
[353334805,1739779757138,-500.0,0.00011821,2]
[353334806,1739779757159,-728.54,0.00011821,2]
[353334807,1739779757181,-798.6,0.00011821,2]
[353334808,1739779757203,-500.0,0.00011861,2]
[353334809,1739779757223,-500.0,0.00011861,2]
[353334810,1739779757243,-500.0,0.00011861,2]
[353334811,1739779757265,-1399.21,0.00011861,2]
[353334812,1739779757285,-500.0,0.00011861,2]
[353334813,1739779757307,-500.0,0.00011861,2]
[353334814,1739779757328,-190.76057223,0.00011895,2]
[353334815,1739779757349,-500.0,0.00011903,2]
[353334816,1739779757372,-500.0,0.00011903,2]
[353334817,1739779757393,-728.54,0.00011903,2]
[353334818,1739779757417,-798.6,0.00011903,2]
[353334819,1739779757438,-500.0,0.00011912,2]
[353334820,1739779757459,-500.0,0.00011912,2]
[353334821,1739779757480,-500.0,0.00011912,2]
[353334822,1739779757500,-500.88910816,0.00011912,2]
[353334823,1739779757521,-500.0,0.00011943,2]
[353334824,1739779757543,-500.0,0.00011943,2]
[353334825,1739779757564,-523.2,0.00011943,2]
[353334826,1739779757586,-1399.21,0.00011943,2]
[353334827,1739779757608,-500.0,0.00011943,2]
[353334828,1739779757630,-500.0,0.00011943,2]
[353334829,1739779757651,-376.01183395,0.00011947,2]
[353334830,1739779757670,-500.0,0.0001197,2]
[353334831,1739779757694,-500.0,0.00011986,2]
[353334832,1739779757716,-484.07,0.00011986,2]
[353334833,1739779757738,-728.54,0.00011986,2]
[353334834,1739779757761,-798.6,0.00011986,2]
[353334835,1739779757784,-500.0,0.00012025,2]
[353334836,1739779757806,-500.0,0.00012025,2]
[353334837,1739779757827,-1399.21,0.00012025,2]
[353334838,1739779757850,-500.0,0.00012025,2]
[353334839,1739779757872,-500.0,0.00012025,2]
[353334840,1739779757892,-500.0,0.00012068,2]
[353334841,1739779757915,-728.54,0.00012068,2]
[353334842,1739779757940,-798.6,0.00012068,2]
[353334843,1739779757964,-500.0,0.00012107,2]
[353334844,1739779757985,-219.12,0.00012107,2]
[353334845,1739779758008,-1399.21,0.00012107,2]
[353334846,1739779758029,-500.0,0.00012107,2]
[353334847,1739779758051,-500.0,0.00012107,2]
[353334848,1739779758073,-500.0,0.0001215,2]
[353334849,1739779758095,-728.54,0.0001215,2]
[353334850,1739779758118,-798.6,0.0001215,2]
[353334851,1739779758139,-500.0,0.00012189,2]
[353334852,1739779758161,-1399.21,0.00012189,2]
[353334853,1739779758181,-500.0,0.00012189,2]
[353334854,1739779758203,-500.0,0.00012189,2]
[353334855,1739779758223,-500.0,0.00012221,2]
[353334856,1739779758244,-500.0,0.00012221,2]
[353334857,1739779758265,-500.0,0.00012232,2]
[353334858,1739779758288,-728.54,0.00012232,2]
[353334859,1739779758311,-798.6,0.00012232,2]
[353334860,1739779758331,-500.0,0.00012244,2]
[353334861,1739779758353,-500.0,0.00012272,2]
[353334862,1739779758376,-1374.86223445,0.00012272,2]
[353334863,1739779760079,-500.0,0.00010999,2]
[353334864,1739779760101,-500.0,0.00011081,2]
[353334865,1739779760126,-24.34776555,0.00012272,2]
[353334866,1739779760149,-500.0,0.00012272,2]
[353334867,1739779760172,-500.0,0.00012272,2]
[353334868,1739779760194,-728.54,0.00012314,2]
[353334869,1739779760218,-798.6,0.00012314,2]
[353334870,1739779760251,500.0,0.00011164,2]
[353334871,1739779760452,500.0,0.00011246,2]
[353334872,1739779760735,500.0,0.00011328,2]
[353334873,1739779761018,500.0,0.0001141,2]
[353334874,1739779761289,500.0,0.00011492,2]
[353334875,1739779761539,500.0,0.00011742,2]